[Event "GrandPrix_30.05"]
[Site "Chess.com"]
[Date "2020.05.30"]
[Round "8"]
[White "moro182"]
[Black "Hrant_ChessMood"]
[Result "1/2-1/2"]
[WhiteElo "2523"]
[BlackElo "2683"]
[TimeControl "600+2"]
[EndTime "12:03:07 PDT"]
[Termination "Game drawn by repetition"]

1. d4 {[%clk 0:10:01.9]} 1... Nf6 {[%clk 0:10:00.5]} 2. c4 {[%clk 0:10:03]} 2...
g6 {[%clk 0:10:02]} 3. g3 {[%clk 0:10:04.1]} 3... Bg7 {[%clk 0:10:00.6]} 4. Bg2
{[%clk 0:10:04.9]} 4... O-O {[%clk 0:09:54.6]} 5. Nc3 {[%clk 0:10:04.4]} 5... d6
{[%clk 0:09:40]} 6. Nf3 {[%clk 0:10:04.9]} 6... Nc6 {[%clk 0:09:38.8]} 7. O-O
{[%clk 0:10:05.1]} 7... e5 {[%clk 0:09:40.1]} 8. dxe5 {[%clk 0:10:05.7]} 8...
dxe5 {[%clk 0:09:42]} 9. Bg5 {[%clk 0:10:06.1]} 9... Be6 {[%clk 0:09:42.7]} 10.
Nd2 {[%clk 0:10:05.2]} 10... Qc8 {[%clk 0:09:30.8]} 11. Bxf6 {[%clk 0:09:42.6]}
11... Bxf6 {[%clk 0:09:31.3]} 12. Nde4 {[%clk 0:09:31.3]} 12... Be7 {[%clk
0:09:15.5]} 13. Nd5 {[%clk 0:09:31.8]} 13... Qd8 {[%clk 0:08:58.9]} 14. Qc1
{[%clk 0:08:28.5]} 14... f5 {[%clk 0:08:49.5]} 15. Nec3 {[%clk 0:08:19.1]} 15...
Bg5 {[%clk 0:08:23.8]} 16. e3 {[%clk 0:08:14]} 16... e4 {[%clk 0:07:52.1]} 17.
Rd1 {[%clk 0:07:57.4]} 17... Ne5 {[%clk 0:07:32.7]} 18. Nb6 {[%clk 0:07:23.4]}
18... cxb6 {[%clk 0:06:40.8]} 19. Rxd8 {[%clk 0:07:20.6]} 19... Rfxd8 {[%clk
0:06:42.7]} 20. b3 {[%clk 0:07:13]} 20... Bf6 {[%clk 0:06:19.5]} 21. Qc2 {[%clk
0:07:01.9]} 21... Rac8 {[%clk 0:04:01.1]} 22. Rd1 {[%clk 0:06:44.5]} 22... Rd3
{[%clk 0:03:45.6]} 23. Nb5 {[%clk 0:06:28.4]} 23... Rcd8 {[%clk 0:03:13.7]} 24.
Nd4 {[%clk 0:06:15.7]} 24... Rxd1+ {[%clk 0:03:07.4]} 25. Qxd1 {[%clk
0:06:14.6]} 25... Nc6 {[%clk 0:03:08.3]} 26. h4 {[%clk 0:05:09.4]} 26... Nxd4
{[%clk 0:03:07.9]} 27. exd4 {[%clk 0:05:11.3]} 27... Bxd4 {[%clk 0:03:09.5]} 28.
Kh2 {[%clk 0:05:04.8]} 28... h5 {[%clk 0:03:02.4]} 29. Qd2 {[%clk 0:04:53.8]}
29... Kf7 {[%clk 0:02:58.4]} 30. Qf4 {[%clk 0:04:51.3]} 30... Kg7 {[%clk
0:01:55.3]} 31. Bf1 {[%clk 0:04:03.7]} 31... Rd7 {[%clk 0:01:53.2]} 32. Be2
{[%clk 0:04:02]} 32... Kf7 {[%clk 0:01:47.8]} 33. Kg2 {[%clk 0:03:58.1]} 33...
a5 {[%clk 0:01:44.4]} 34. Kf1 {[%clk 0:03:51.5]} 34... Bc5 {[%clk 0:01:44.4]}
35. Qb8 {[%clk 0:02:44.4]} 35... Bd6 {[%clk 0:01:33.2]} 36. Qh8 {[%clk
0:02:35.4]} 36... Bf8 {[%clk 0:01:34.1]} 37. Qe5 {[%clk 0:02:21]} 37... Bc5
{[%clk 0:01:24.7]} 38. a4 {[%clk 0:01:47.4]} 38... Bb4 {[%clk 0:01:20.3]} 39.
Qh8 {[%clk 0:01:29.4]} 39... Bf8 {[%clk 0:01:20.1]} 40. Qe5 {[%clk 0:01:19.3]}
40... Bg7 {[%clk 0:01:20.7]} 41. Qb8 {[%clk 0:01:19.8]} 41... Bf6 {[%clk
0:01:16.2]} 42. Qf4 {[%clk 0:01:18.9]} 42... Kg7 {[%clk 0:01:09.4]} 43. Qe3
{[%clk 0:00:39]} 43... Bd4 {[%clk 0:01:08.3]} 44. Qf4 {[%clk 0:00:40.4]} 44...
Bf7 {[%clk 0:01:01.6]} 45. g4 {[%clk 0:00:22.3]} 45... fxg4 {[%clk 0:00:53.3]}
46. Qxe4 {[%clk 0:00:19]} 46... Bf6 {[%clk 0:00:54.4]} 47. Qe3 {[%clk
0:00:14.1]} 47... Bxh4 {[%clk 0:00:44.8]} 48. Qxb6 {[%clk 0:00:14.5]} 48... Bd8
{[%clk 0:00:46.5]} 49. Qb5 {[%clk 0:00:11.9]} 49... Re7 {[%clk 0:00:44]} 50. Qc5
{[%clk 0:00:10.4]} 50... Re6 {[%clk 0:00:34.9]} 51. Qc8 {[%clk 0:00:05.4]} 51...
Be7 {[%clk 0:00:13.4]} 52. c5 {[%clk 0:00:05]} 52... Rf6 {[%clk 0:00:11.7]} 53.
Bc4 {[%clk 0:00:04.7]} 53... g3 {[%clk 0:00:11.1]} 54. Qxb7 {[%clk 0:00:04.3]}
54... Bxc5 {[%clk 0:00:11.4]} 55. Kg2 {[%clk 0:00:03.6]} 55... gxf2 {[%clk
0:00:11.5]} 56. Kf1 {[%clk 0:00:04.9]} 56... h4 {[%clk 0:00:09.5]} 57. Qc7
{[%clk 0:00:06]} 57... Bd6 {[%clk 0:00:08.8]} 58. Qd7 {[%clk 0:00:07.3]} 58...
Bb4 {[%clk 0:00:07.5]} 59. Qc7 {[%clk 0:00:03.7]} 59... Be1 {[%clk 0:00:08]} 60.
Bd5 {[%clk 0:00:03.7]} 60... h3 {[%clk 0:00:08.9]} 61. Bxf7 {[%clk 0:00:04.7]}
61... Rxf7 {[%clk 0:00:09.7]} 62. Qe5+ {[%clk 0:00:06.6]} 62... Kf8 {[%clk
0:00:08.6]} 63. Qh8+ {[%clk 0:00:07.5]} 63... Ke7 {[%clk 0:00:10]} 64. Qxh3
{[%clk 0:00:09]} 64... Bb4 {[%clk 0:00:10.7]} 65. Qe3+ {[%clk 0:00:09.4]} 65...
Kf8 {[%clk 0:00:11.5]} 66. Qd4 {[%clk 0:00:09.4]} 66... Kg8 {[%clk 0:00:11.2]}
67. Qe4 {[%clk 0:00:08.9]} 67... Kg7 {[%clk 0:00:10.7]} 68. Qe5+ {[%clk
0:00:10.3]} 68... Rf6 {[%clk 0:00:11.7]} 69. Qc7+ {[%clk 0:00:11.4]} 69... Kf8
{[%clk 0:00:12.8]} 70. Qd8+ {[%clk 0:00:11.9]} 70... Kf7 {[%clk 0:00:14.1]} 71.
Qd7+ {[%clk 0:00:13.1]} 71... Kg8 {[%clk 0:00:13.4]} 72. Qd8+ {[%clk 0:00:13.7]}
72... Kg7 {[%clk 0:00:14.6]} 73. Qc7+ {[%clk 0:00:14.2]} 73... Rf7 {[%clk
0:00:12.3]} 74. Qe5+ {[%clk 0:00:15.2]} 74... Kg8 {[%clk 0:00:10.7]} 75. Qe8+
{[%clk 0:00:16.3]} 75... Bf8 {[%clk 0:00:12.3]} 76. b4 {[%clk 0:00:11.8]} 76...
axb4 {[%clk 0:00:12.5]} 77. a5 {[%clk 0:00:13.2]} 77... b3 {[%clk 0:00:13.2]}
78. a6 {[%clk 0:00:13.7]} 78... b2 {[%clk 0:00:14.4]} 79. Qb5 {[%clk 0:00:14.1]}
79... Bg7 {[%clk 0:00:13.4]} 80. Qb8+ {[%clk 0:00:09.5]} 80... Kh7 {[%clk
0:00:14.3]} 81. Qh2+ {[%clk 0:00:10.1]} 81... Bh6 {[%clk 0:00:14.1]} 82. Qb8
{[%clk 0:00:11.7]} 82... Bg7 {[%clk 0:00:14.4]} 83. Qh2+ {[%clk 0:00:12.8]}
83... Kg8 {[%clk 0:00:16.1]} 84. Qb8+ {[%clk 0:00:14.1]} 84... Rf8 {[%clk
0:00:17.9]} 85. a7 {[%clk 0:00:14.9]} 85... Kh8 {[%clk 0:00:12.6]} 86. Qh2+
{[%clk 0:00:08.9]} 86... Kg8 {[%clk 0:00:13.3]} 87. Qb8 {[%clk 0:00:09.1]} 87...
Kh7 {[%clk 0:00:14.6]} 88. Qh2+ {[%clk 0:00:05.5]} 88... Bh6 {[%clk 0:00:15.3]}
89. Qb8 {[%clk 0:00:04.8]} 89... Bg7 {[%clk 0:00:11.4]} 90. Qh2+ {[%clk
0:00:04.1]} 90... Kg8 {[%clk 0:00:12.5]} 91. Qb8 {[%clk 0:00:05.1]} 1/2-1/2

[Event "GrandPrix_30.05"]
[Site "Chess.com"]
[Date "2020.05.30"]
[Round "8"]
[White "swisspower96"]
[Black "Guenplen"]
[Result "0-1"]
[WhiteElo "2369"]
[BlackElo "2578"]
[TimeControl "600+2"]
[EndTime "12:03:28 PDT"]
[Termination "Guenplen won on time"]

1. d4 {[%clk 0:10:01.9]} 1... Nf6 {[%clk 0:09:59.8]} 2. c4 {[%clk 0:10:02]} 2...
b6 {[%clk 0:09:59.4]} 3. f3 {[%clk 0:08:59.3]} 3... Nc6 {[%clk 0:09:59.4]} 4. e4
{[%clk 0:08:42.5]} 4... e5 {[%clk 0:09:59.6]} 5. d5 {[%clk 0:08:43.8]} 5... Ne7
{[%clk 0:09:57.2]} 6. Be3 {[%clk 0:08:41]} 6... Ng6 {[%clk 0:09:57.2]} 7. Nc3
{[%clk 0:08:25.5]} 7... Bb4 {[%clk 0:09:30.1]} 8. Qc2 {[%clk 0:08:18.1]} 8...
O-O {[%clk 0:09:24.8]} 9. Bd3 {[%clk 0:08:11.4]} 9... Bc5 {[%clk 0:09:20.9]} 10.
Bxc5 {[%clk 0:07:55.9]} 10... bxc5 {[%clk 0:09:22.8]} 11. Nge2 {[%clk
0:07:57.1]} 11... d6 {[%clk 0:09:19.3]} 12. O-O-O {[%clk 0:07:48.8]} 12... Nh5
{[%clk 0:08:48.8]} 13. g3 {[%clk 0:07:29.9]} 13... Bh3 {[%clk 0:08:33.5]} 14.
Rhg1 {[%clk 0:07:30.4]} 14... Bd7 {[%clk 0:07:53.1]} 15. Rdf1 {[%clk 0:07:24.2]}
15... Kh8 {[%clk 0:07:43.1]} 16. f4 {[%clk 0:07:19]} 16... Bg4 {[%clk
0:07:29.9]} 17. f5 {[%clk 0:06:36.3]} 17... Qg5+ {[%clk 0:07:29.3]} 18. Qd2
{[%clk 0:06:28.9]} 18... Qxd2+ {[%clk 0:07:23.5]} 19. Kxd2 {[%clk 0:06:30.8]}
19... Ne7 {[%clk 0:07:24.1]} 20. Nd1 {[%clk 0:06:30.3]} 20... Bxe2 {[%clk
0:06:54.8]} 21. Kxe2 {[%clk 0:06:28.1]} 21... Rfb8 {[%clk 0:06:29.1]} 22. Ke3
{[%clk 0:06:27]} 22... a5 {[%clk 0:06:21.9]} 23. Be2 {[%clk 0:06:12.5]} 23...
Nf6 {[%clk 0:06:00]} 24. g4 {[%clk 0:06:12.5]} 24... Nd7 {[%clk 0:05:02]} 25. g5
{[%clk 0:06:12.5]} 25... Kg8 {[%clk 0:04:50.4]} 26. h4 {[%clk 0:05:52.5]} 26...
Kf8 {[%clk 0:04:06]} 27. h5 {[%clk 0:05:49.4]} 27... Ng8 {[%clk 0:04:05.5]} 28.
f6 {[%clk 0:05:18.9]} 28... gxf6 {[%clk 0:03:51.9]} 29. Bg4 {[%clk 0:05:18.4]}
29... Ke7 {[%clk 0:03:53.2]} 30. Rg2 {[%clk 0:04:50]} 30... Nb6 {[%clk
0:03:41.7]} 31. Kd3 {[%clk 0:04:28.2]} 31... fxg5 {[%clk 0:03:35.8]} 32. Ne3
{[%clk 0:04:26.1]} 32... Nh6 {[%clk 0:03:19]} 33. Bf5 {[%clk 0:04:24]} 33... f6
{[%clk 0:03:06.9]} 34. Bxh7 {[%clk 0:04:21.9]} 34... Rh8 {[%clk 0:03:07.7]} 35.
Bg6 {[%clk 0:04:17.5]} 35... Nd7 {[%clk 0:03:00.8]} 36. Rh1 {[%clk 0:04:00.1]}
36... Rag8 {[%clk 0:02:56.3]} 37. Bf5 {[%clk 0:03:49.6]} 37... Rg7 {[%clk
0:02:32.4]} 38. Rf1 {[%clk 0:03:15.4]} 38... Nf8 {[%clk 0:02:15.5]} 39. Rgf2
{[%clk 0:03:13.7]} 39... g4 {[%clk 0:02:08.8]} 40. Bxg4 {[%clk 0:02:10.7]} 40...
Nxg4 {[%clk 0:01:37.2]} 41. Rg2 {[%clk 0:02:11.1]} 41... Rxh5 {[%clk 0:01:21.8]}
42. Nf5+ {[%clk 0:01:57.5]} 42... Rxf5 {[%clk 0:01:21.2]} 43. Rxf5 {[%clk
0:01:59.1]} 43... Kf7 {[%clk 0:01:14.9]} 44. Ke2 {[%clk 0:01:51]} 44... Nh6
{[%clk 0:00:37.3]} 45. Rxg7+ {[%clk 0:01:50.7]} 45... Kxg7 {[%clk 0:00:39.2]}
46. Rf3 {[%clk 0:01:52.3]} 46... f5 {[%clk 0:00:39.9]} 47. exf5 {[%clk
0:01:49.2]} 47... Kf6 {[%clk 0:00:40.8]} 48. Ra3 {[%clk 0:01:50.4]} 48... Nxf5
{[%clk 0:00:41.9]} 49. Rxa5 {[%clk 0:01:51.8]} 49... Ng6 {[%clk 0:00:43.2]} 50.
Ra8 {[%clk 0:01:38.7]} 50... e4 {[%clk 0:00:41.7]} 51. a4 {[%clk 0:01:38]} 51...
Nf4+ {[%clk 0:00:41.4]} 52. Kd1 {[%clk 0:01:32.8]} 52... Ne3+ {[%clk 0:00:36.9]}
53. Kc1 {[%clk 0:01:22.9]} 53... Nxc4 {[%clk 0:00:33.8]} 54. b3 {[%clk
0:01:10.1]} 54... Nb6 {[%clk 0:00:24.8]} 55. Rf8+ {[%clk 0:01:09.9]} 55... Ke5
{[%clk 0:00:26.1]} 56. a5 {[%clk 0:01:02.7]} 56... Nfxd5 {[%clk 0:00:20.5]} 57.
Rf7 {[%clk 0:00:35.3]} 57... Kd4 {[%clk 0:00:14.4]} 58. axb6 {[%clk 0:00:21]}
58... cxb6 {[%clk 0:00:13.7]} 59. Rd7 {[%clk 0:00:22.3]} 59... Ke5 {[%clk
0:00:14.9]} 60. Rd8 {[%clk 0:00:23.8]} 60... Nf6 {[%clk 0:00:07]} 61. Rb8 {[%clk
0:00:24.3]} 61... Nd7 {[%clk 0:00:06.3]} 62. Rd8 {[%clk 0:00:22.1]} 62... Ke6
{[%clk 0:00:06]} 63. Re8+ {[%clk 0:00:23.4]} 63... Kd5 {[%clk 0:00:06.6]} 64.
Rd8 {[%clk 0:00:19.6]} 64... Ne5 {[%clk 0:00:07]} 65. Rb8 {[%clk 0:00:17.8]}
65... Kc6 {[%clk 0:00:07.9]} 66. Rc8+ {[%clk 0:00:19.3]} 66... Kd7 {[%clk
0:00:08.5]} 67. Rb8 {[%clk 0:00:20.7]} 67... Kc7 {[%clk 0:00:09.7]} 68. Re8
{[%clk 0:00:21.8]} 68... b5 {[%clk 0:00:10.4]} 69. Kd2 {[%clk 0:00:22.5]} 69...
Kd7 {[%clk 0:00:08.1]} 70. Rb8 {[%clk 0:00:22.7]} 70... b4 {[%clk 0:00:08.6]}
71. Ke3 {[%clk 0:00:22.4]} 71... d5 {[%clk 0:00:09.5]} 72. Rh8 {[%clk
0:00:15.2]} 72... Nc6 {[%clk 0:00:06.5]} 73. Rh7+ {[%clk 0:00:12.5]} 73... Kd6
{[%clk 0:00:07.9]} 74. Rh6+ {[%clk 0:00:14]} 74... Kc7 {[%clk 0:00:09.4]} 75.
Rh5 {[%clk 0:00:10.8]} 75... Kd6 {[%clk 0:00:10.2]} 76. Rh6+ {[%clk 0:00:12.3]}
76... Kc7 {[%clk 0:00:07.5]} 77. Rh5 {[%clk 0:00:13.5]} 77... Ne7 {[%clk
0:00:08.6]} 78. Rh7 {[%clk 0:00:13.8]} 78... Kd7 {[%clk 0:00:09.7]} 79. Kf4
{[%clk 0:00:14.3]} 79... Kd6 {[%clk 0:00:04.8]} 80. Rh6+ {[%clk 0:00:15]} 80...
Kd7 {[%clk 0:00:06.3]} 81. Rh7 {[%clk 0:00:14]} 81... Ke6 {[%clk 0:00:03.8]} 82.
Rh6+ {[%clk 0:00:14.9]} 82... Kf7 {[%clk 0:00:05.2]} 83. Ke5 {[%clk 0:00:16.2]}
83... e3 {[%clk 0:00:05.8]} 84. Rh7+ {[%clk 0:00:15]} 84... Kf8 {[%clk
0:00:06.2]} 85. Rh3 {[%clk 0:00:07.7]} 85... d4 {[%clk 0:00:07.2]} 86. Ke6
{[%clk 0:00:08.6]} 86... Nc6 {[%clk 0:00:05.9]} 87. Kf6 {[%clk 0:00:07.8]} 87...
Ke8 {[%clk 0:00:06.8]} 88. Ke6 {[%clk 0:00:08.8]} 88... Kf8 {[%clk 0:00:08.1]}
89. Kf6 {[%clk 0:00:10.2]} 89... Ne7 {[%clk 0:00:07.4]} 90. Rh8+ {[%clk
0:00:03.5]} 90... Ng8+ {[%clk 0:00:08.4]} 91. Ke5 {[%clk 0:00:04.7]} 91... e2
{[%clk 0:00:09.4]} 92. Rh1 {[%clk 0:00:05.9]} 92... d3 {[%clk 0:00:10.9]} 93.
Re1 {[%clk 0:00:03.2]} 93... d2 {[%clk 0:00:12]} 0-1